lending/lending_fUSD_20251016
["ID","MTS","AMOUNT","RATE_DAILY","PERIOD"]
[391403851,1760593977750,335.79074681,0.00012338,2]
[391403852,1760593995308,2000.0,0.00027397,120]
[391403853,1760594006484,-500.0,0.00016438,30]
[391403854,1760594007184,500.0,0.00027397,120]
[391403856,1760594345993,20900.3878128,0.00027,120]
[391403859,1760594552945,500.0,0.00027397,120]
[391403860,1760594594607,469.446747,0.00027397,120]
[391403861,1760594597649,2000.0,0.00027397,120]
[391403864,1760594609402,500.0,0.00027397,120]
[391403865,1760594624956,1700.0,0.00027397,120]
[391403868,1760594838034,293.62717291,0.00027,120]
[391403869,1760594949524,512.68657785,0.0001369,2]
[391403875,1760595031734,-200.0,0.00015237,2]
[391403876,1760595031744,-586.21695819,0.00015285,2]
[391403877,1760595031756,-413.78304181,0.00015285,2]
[391403878,1760595031765,-151.84148618,0.00015289,2]
[391403879,1760595031795,-98.15851382,0.00015289,2]
[391403880,1760595031804,-581.11598072,0.00015906,2]
[391403881,1760595031916,-295.74368483,0.00015906,2]
[391403882,1760595031926,-215.96877831,0.00015911,2]
[391403883,1760595031937,-984.03122169,0.00015911,2]
[391403884,1760595031947,-1738.2256147,0.00015912,2]
[391403885,1760595031958,-1612.62788037,0.00015912,2]
[391403888,1760595032113,-4670.89882818,0.00015912,2]
[391404046,1760595039719,-2047.21884357,0.00015912,2]
[391404048,1760595039731,-832.35532283,0.00015912,2]
[391404051,1760595039742,-267.9796905,0.00015912,2]
[391404053,1760595039755,-556.2282595,0.00015912,2]
[391404063,1760595039841,-1529.0169867,0.00015912,2]
[391404065,1760595039852,-318.8230133,0.00015912,2]
[391404072,1760595039907,-4647.85618608,0.00015912,2]
[391404362,1760595042791,-392.29490377,0.00015912,2]
[391404651,1760595045791,-2009.45547236,0.00015912,2]
[391404653,1760595045802,-536.81750175,0.00015912,2]
[391404655,1760595045813,-1856.73590372,0.00015912,2]
[391404657,1760595045824,-511.05,0.00015912,2]
[391404669,1760595045926,-3230.76727286,0.00015912,2]
[391409576,1760595127404,1301882.73741512,0.00027,120]
[391409579,1760595194971,2000.0,0.00027397,120]
[391409580,1760595228728,600000.0,0.00027,120]
[391409593,1760595357250,500.0,0.00027397,120]
[391409629,1760595796206,2000.0,0.00027397,120]
[391409630,1760595807181,500.0,0.00027397,120]
[391409692,1760596117879,3368.38661586,0.00012535,2]
[391409693,1760596118414,438.63763545,0.0001,2]
[391409698,1760596136259,3140.0,0.00027397,120]
[391409717,1760596231904,-244.122655,0.00014427,2]
[391409720,1760596231916,-1565.50102111,0.000145,3]
[391409722,1760596231930,-157.44,0.00014803,2]
[391409724,1760596231940,-150.0,0.00014854,2]
[391409725,1760596231951,-1069.0,0.00014899,2]
[391409726,1760596231965,-836.01049378,0.000149,2]
[391409727,1760596231987,-1478.70098315,0.000149,2]
[391409728,1760596232000,-212.0,0.00014972,2]
[391409729,1760596232012,-501.7894212,0.00014973,2]
[391409730,1760596232022,-500.0,0.00014973,2]
[391409731,1760596232032,-500.0,0.00014973,2]
[391409732,1760596232042,-273.32956166,0.00014973,2]
[391409733,1760596232052,-503.15134925,0.00014973,2]
[391409734,1760596232062,-500.0,0.00014973,2]
[391409735,1760596232072,-500.87505486,0.00014973,2]
[391409736,1760596232082,-500.0,0.00014973,2]
[391409737,1760596232092,-500.0,0.00014973,2]
[391409738,1760596232103,-500.0,0.00014973,2]
[391409739,1760596232114,-508.99102786,0.00014973,2]
[391409740,1760596232124,-502.1845485,0.00014973,2]
[391409741,1760596232134,-151.0,0.00014997,2]
[391409742,1760596232144,-500.0,0.00014999,2]
[391409743,1760596232154,-15.52387671,0.00014999,2]
[391409744,1760596232166,-484.47612329,0.00014999,2]
[391409745,1760596232181,-368.21360968,0.00014999,2]
[391409746,1760596232215,-131.78639032,0.00014999,2]
[391409747,1760596232226,-390.26151957,0.00014999,2]
[391409748,1760596238037,-233.26711132,0.00014999,2]
[391409749,1760596238047,-299.99,0.00014999,2]
[391409750,1760596238057,-3044.0756882,0.00015,2]
[391409901,1760596239943,-156.06597639,0.000149,2]
[391409902,1760596239953,-8252.94572966,0.00015,2]
[391409904,1760596239965,-706.44731388,0.00015,2]
[391409917,1760596240109,-8249.06203584,0.00015,2]
[391410029,1760596241356,-3051.1503055,0.00015,2]
[391410030,1760596241391,-591.566251,0.00015,2]
[391410031,1760596241403,-2823.96487722,0.00015,2]
[391410208,1760596243239,-567.56996216,0.00015,2]
[391410508,1760596246240,-1027.31348054,0.00015,2]
[391410512,1760596246268,-309.39699976,0.00015,2]
[391412998,1760596270958,500.0,0.00027397,120]
[391414735,1760596319731,453.1,7.334e-05,2]
[391414736,1760596319860,453.1,7.72e-05,2]
[391414737,1760596320053,453.1,8.106e-05,2]
[391414738,1760596320247,453.1,8.492e-05,2]
[391414739,1760596320441,453.1,8.878e-05,2]
[391414740,1760596320634,453.1,9.263e-05,2]
[391414741,1760596320835,453.1,9.649e-05,2]
[391414742,1760596321075,453.1,0.00010035,2]
[391414743,1760596321238,453.1,0.00010421,2]
[391414744,1760596321455,453.1,0.00010807,2]
[391414745,1760596321655,453.1,0.00011193,2]
[391414746,1760596322109,453.1,0.00011579,2]
[391414747,1760596322382,453.1,0.00011965,2]
[391414748,1760596322479,453.1,0.00012351,2]
[391414749,1760596322627,453.1,0.00012737,2]
[391414750,1760596322718,453.1,0.00013123,2]
[391414751,1760596322956,453.1,0.00013509,2]
[391414752,1760596393160,2000.0,0.00027397,120]
[391414753,1760596404380,500.0,0.00027397,120]
[391415144,1760596505477,-1209.0,0.00030843,120]
[391415146,1760596505505,-1000.0,0.00030843,60]
[391415147,1760596505531,-1000.0,0.00030843,60]
[391415149,1760596505557,-3000.0,0.00030843,120]
[391415150,1760596505583,-1000.0,0.00030843,60]
[391415152,1760596505608,-1000.0,0.00030843,30]
[391415153,1760596505634,-1000.0,0.00030843,30]
[391415155,1760596505660,-1000.0,0.00030843,60]
[391415156,1760596505686,-1000.0,0.00030843,60]
[391415158,1760596505711,-1000.0,0.00030843,120]
[391415159,1760596505736,-1000.0,0.00030843,60]
[391415161,1760596505762,-1000.0,0.00030843,30]
[391415162,1760596505788,-1000.0,0.00030843,30]
[391415163,1760596505815,-1000.0,0.00030843,30]
[391415165,1760596505844,-300.0,0.00030843,30]
[391415166,1760596505872,-200.78959991,0.00030843,120]
[391415168,1760596505899,-1000.0,0.00030843,30]
[391415169,1760596505926,-1000.0,0.00030843,30]
[391415171,1760596505955,-1000.0,0.00030843,30]
[391415172,1760596505984,-1000.0,0.00030843,30]
[391415174,1760596506011,-1000.0,0.00030843,30]
[391415175,1760596506038,-1000.0,0.00030843,30]
[391415176,1760596506069,-2839.44171966,0.00030843,30]
[391415178,1760596506100,-1058.49405571,0.00030843,30]
[391415179,1760596506126,-1000.0,0.00030843,30]
[391415181,1760596506152,-1000.0,0.00030843,30]
[391415182,1760596506180,-1000.0,0.00030843,30]
[391415184,1760596506207,-1000.0,0.00030843,30]
[391415185,1760596506241,-437.31807569,0.00030843,30]
[391415193,1760596506716,-1000.0,0.00030843,30]
[391415195,1760596506765,-1000.0,0.00030843,30]
[391415197,1760596506791,-1000.0,0.00030843,30]
[391415198,1760596506816,-936.07023613,0.00030843,30]
[391415200,1760596506845,-798.97156463,0.00030843,30]
[391415201,1760596506872,-312.0,0.00030843,120]
[391415203,1760596506897,-1813.0,0.00030843,120]
[391415204,1760596506923,-1000.0,0.00030843,60]
[391415206,1760596506950,-500.0,0.00030843,120]
[391415207,1760596506977,-500.0,0.00030843,120]
[391415209,1760596507009,-500.0,0.00030843,120]
[391415210,1760596507037,-500.0,0.00030843,120]
[391415212,1760596507065,-500.0,0.00030843,120]
[391415213,1760596507095,-500.0,0.00030843,120]
[391415215,1760596507123,-500.0,0.00030843,120]
[391415217,1760596507151,-500.0,0.00030843,120]
[391415218,1760596507179,-500.0,0.00030843,120]
[391415220,1760596507204,-1000.0,0.00030843,60]
[391415221,1760596507232,-500.0,0.00030843,120]
[391415223,1760596507261,-500.0,0.00030843,120]
[391415224,1760596507288,-500.0,0.00030843,120]
[391415226,1760596507319,-500.0,0.00030843,120]
[391415227,1760596507346,-500.0,0.00030843,120]
[391415229,1760596507374,-500.0,0.00030843,120]
[391415230,1760596507402,-350.82145054,0.00030843,120]
[391415232,1760596507428,-1000.0,0.00030843,30]
[391415233,1760596507468,-500.0,0.00030843,120]
[391415235,1760596507494,-1000.0,0.00030843,60]
[391415236,1760596507520,-500.0,0.00030843,120]
[391415238,1760596507553,-438.0067323,0.00030843,120]
[391415240,1760596507580,-1877.87,0.00030843,120]
[391415241,1760596507609,-1000.0,0.00030843,30]
[391415243,1760596507637,-1000.0,0.00030843,60]
[391415244,1760596507663,-1000.0,0.00030843,30]
[391415246,1760596507691,-1000.02,0.00030843,30]
[391415247,1760596507720,-441.54578856,0.00030843,120]
[391415249,1760596507750,-1000.0,0.00030843,30]
[391415250,1760596507776,-1302.82843587,0.00030843,60]
[391415252,1760596507802,-999.999997,0.00030843,120]
[391415253,1760596507828,-532.40901157,0.00030843,30]
[391415255,1760596507856,-419.84206809,0.00030843,60]
[391415256,1760596507883,-676.79263106,0.00030843,30]
[391415258,1760596507910,-397.909391,0.00030843,30]
[391415259,1760596507936,-693.15493622,0.00030843,120]
[391415261,1760596507963,-548.2816957,0.00030843,91]
[391415262,1760596507992,-2300.88196016,0.00030843,30]
[391415264,1760596508022,-1481.99536007,0.00030843,30]
[391415265,1760596508051,-912.94469896,0.00030843,30]
[391415267,1760596508079,-1160.44871385,0.00030843,30]
[391415268,1760596508109,-2503.16243605,0.00030843,30]
[391415270,1760596508136,-2922.09139471,0.00030843,30]
[391415271,1760596508163,-562.72478628,0.00030843,120]
[391415273,1760596508194,-719.85386677,0.00030843,30]
[391415274,1760596508228,-870.28597203,0.00030843,120]
[391415276,1760596508255,-2090.53996152,0.00030843,30]
[391415277,1760596508282,-770.23211726,0.00030843,30]
[391415279,1760596508309,-186.53127845,0.00030843,120]
[391415280,1760596508334,-2196.91018303,0.00030843,30]
[391415282,1760596508367,-2353.86892588,0.00030843,30]
[391415283,1760596508394,-162.00701456,0.00030843,120]
[391415285,1760596508422,-2500.0,0.00030843,30]
[391415286,1760596508451,-1070.50047385,0.00030843,30]
[391415288,1760596508489,-1484.57858554,0.00030843,30]
[391415289,1760596508516,-674.71336435,0.00030843,30]
[391415291,1760596508544,-731.09588536,0.00030843,120]
[391415292,1760596508570,-894.04788368,0.00030843,30]
[391415294,1760596508597,-2240.60158262,0.00030843,30]
[391415296,1760596508623,-1767.2882172,0.00030843,120]
[391415297,1760596508651,-902.78570744,0.00030843,30]
[391415299,1760596508677,-2339.81308297,0.00030843,30]
[391415300,1760596508716,-468.98840188,0.00030843,120]
[391415302,1760596508745,-1414.01034769,0.00030843,30]
[391415303,1760596508773,-284.75355638,0.00030843,120]
[391415305,1760596508801,-519.66420449,0.00030843,120]
[391415306,1760596508829,-972.42702194,0.00030843,30]
[391415308,1760596508860,-399.32648853,0.00030843,60]
[391415309,1760596508887,-200.09828491,0.00030843,120]
[391415311,1760596508916,-2303.93013565,0.00030843,120]
[391415312,1760596508944,-542.99276697,0.00030843,120]
[391415314,1760596508973,-1399.57980737,0.00030843,30]
[391415315,1760596509003,-217.60425283,0.00030843,30]
[391415317,1760596509033,-1004.76171182,0.00030843,30]
[391415319,1760596509062,-722.63019381,0.00030843,120]
[391415320,1760596509096,-2032.24138853,0.00030843,120]
[391415322,1760596509130,-2000.0,0.00030843,30]
[391415323,1760596509158,-556.64131018,0.00030843,120]
[391415325,1760596509186,-367.10319777,0.00030843,30]
[391415326,1760596509215,-504.18069785,0.00030843,30]
[391415328,1760596509244,-696.43751688,0.00030843,30]
[391415330,1760596509272,-1974.51368721,0.00030843,30]
[391415331,1760596509300,-164.07108501,0.00030843,120]
[391415333,1760596509328,-1057.63219234,0.00030843,30]
[391415334,1760596509357,-289.6819632,0.00030843,120]
[391415336,1760596509385,-403.15597933,0.00030843,120]
[391415337,1760596509412,-442.64969507,0.00030843,120]
[391415349,1760596509950,-285.78934505,0.00030843,120]
[391415350,1760596509976,-1597.35574196,0.00030843,120]
[391415352,1760596510004,-508.16348093,0.00030843,120]
[391415353,1760596510031,-1869.38911087,0.00030843,120]
[391415355,1760596510059,-534.3215351,0.00030843,120]
[391415356,1760596510085,-1324.29548143,0.00030843,120]
[391415358,1760596510111,-206.35459746,0.00030843,30]
[391415359,1760596510136,-164.55858785,0.00030843,120]
[391415361,1760596510164,-997.0,0.00030843,30]
[391415362,1760596510188,-405.09218566,0.00030843,120]
[391415364,1760596510214,-1829.2970942,0.00030843,120]
[391415366,1760596510238,-898.96888427,0.00030843,30]
[391415367,1760596510264,-456.78029791,0.00030843,60]
[391415369,1760596510288,-191.53253402,0.00030843,120]
[391415370,1760596510315,-984.71704877,0.00030843,120]
[391415372,1760596510341,-923.68400949,0.00030843,30]
[391415373,1760596510365,-405.56245497,0.00030843,55]
[391415375,1760596510393,-461.79604791,0.00030843,30]
[391415376,1760596510419,-679.63886104,0.00030843,120]
[391415378,1760596510444,-1909.02655248,0.00030843,120]
[391415379,1760596510469,-1478.63470504,0.00030843,120]
[391415381,1760596510495,-421.67245402,0.00030843,60]
[391415382,1760596510520,-213.20943611,0.00030843,30]
[391415384,1760596510545,-595.77754273,0.00030843,120]
[391415385,1760596510571,-503.15486923,0.00030843,120]
[391415387,1760596510597,-1356.72767421,0.00030843,120]
[391415388,1760596510622,-2149.56315517,0.00030843,120]
[391415390,1760596510647,-1098.66893198,0.00030843,30]
[391415391,1760596510672,-1662.20368734,0.00030843,120]
[391415393,1760596510699,-1142.95330605,0.00030843,30]
[391415394,1760596510724,-1819.16644538,0.00030843,120]
[391415396,1760596510750,-967.66946045,0.00030843,120]
[391415398,1760596510776,-279.26020796,0.00030843,30]
[391415399,1760596510806,-1641.81118962,0.00030843,30]
[391415401,1760596510832,-2387.99210019,0.00030843,30]
[391415402,1760596510874,-2822.45208277,0.00030843,30]
[391415404,1760596510904,-1255.56128118,0.00030843,120]
[391415406,1760596510931,-1265.67029804,0.00030843,120]
[391415407,1760596510958,-2150.31945893,0.00030843,120]
[391415409,1760596510986,-1973.31964178,0.00030843,120]
[391415410,1760596511019,-213.07774066,0.00030843,31]
[391415412,1760596511051,-1844.57342607,0.00030843,30]
[391415413,1760596511086,-2439.30987511,0.00030843,30]
[391415415,1760596511123,-588.61602911,0.00030843,120]
[391415416,1760596511154,-1534.48967344,0.00030843,30]
[391415418,1760596511182,-2527.82290242,0.00030843,30]
[391415419,1760596511211,-308.99624756,0.00030843,30]
[391415421,1760596511239,-994.40504634,0.00030843,120]
[391415422,1760596511267,-1370.91223889,0.00030843,120]
[391415424,1760596511299,-1164.74687018,0.00030843,120]
[391415425,1760596511328,-756.0,0.00030843,120]
[391415427,1760596511362,-355.87283256,0.00030843,120]
[391415428,1760596511390,-506.27563338,0.00030843,120]
[391415429,1760596511419,-1218.2293033,0.00030843,30]
[391415430,1760596511447,-584.63918118,0.00030843,120]
[391415431,1760596511475,-872.72229488,0.00030843,30]
[391415432,1760596511502,-274.24624998,0.00030843,30]
[391415433,1760596511530,-179.73906212,0.00030843,120]
[391415434,1760596511561,-448.94016052,0.00030843,30]
[391415436,1760596511589,-154.84320974,0.00030843,120]
[391415437,1760596511620,-673.32625254,0.00030843,120]
[391415439,1760596511647,-1538.01353605,0.00030843,30]
[391415440,1760596511676,-411.67171024,0.00030843,60]
[391415442,1760596511704,-1084.45111906,0.00030843,30]
[391415443,1760596511732,-746.5902988,0.00030843,120]
[391415445,1760596511766,-1703.89351046,0.00030843,120]
[391415447,1760596511794,-1643.61941128,0.00030843,120]
[391415448,1760596511823,-1289.9046315,0.00030843,120]
[391415450,1760596511851,-193.65429172,0.00030843,120]
[391415451,1760596511878,-279.50299254,0.00030843,120]
[391415453,1760596511906,-849.58266134,0.00030843,120]
[391415454,1760596511934,-386.66264005,0.00030843,30]
[391415456,1760596511961,-1223.27368612,0.00030843,30]
[391415457,1760596511989,-2034.99902599,0.00030843,30]
[391415459,1760596512017,-1441.15867302,0.00030843,120]
[391415460,1760596512046,-2997.25241305,0.00030843,30]
[391415462,1760596512076,-2201.52708832,0.00030843,120]
[391415463,1760596512105,-155.27677048,0.00030843,120]
[391415465,1760596512135,-363.41745833,0.00030843,120]
[391415467,1760596512162,-2325.85005214,0.00030843,30]
[391415468,1760596512190,-317.31951411,0.00030843,120]
[391415470,1760596512218,-3158.37176883,0.00030843,30]
[391415471,1760596512245,-500.0,0.00030843,120]
[391415473,1760596512272,-1381.97617548,0.00030843,30]
[391415474,1760596512299,-1616.24306716,0.00030843,120]
[391415476,1760596512326,-301.15262126,0.00030843,30]
[391415477,1760596512355,-151.21660856,0.00030843,120]
[391415479,1760596512383,-256.28045829,0.00030843,30]
[391415480,1760596512410,-183.6897337,0.00030843,120]
[391415482,1760596512436,-676.37340573,0.00030843,120]
[391415483,1760596512463,-205.00561564,0.00030843,120]
[391415485,1760596512490,-473.1,0.00030843,120]
[391415486,1760596512518,-224.22,0.00030843,30]
[391415488,1760596512547,-778.71664957,0.00030843,120]
[391415489,1760596512574,-3145.9387292,0.00030843,30]
[391415498,1760596512979,-5176.92623062,0.00030843,30]
[391415500,1760596513011,-151.49624925,0.00030843,30]
[391415501,1760596513039,-3000.0,0.00030843,120]
[391415502,1760596513068,-800.0,0.00030843,120]
[391415504,1760596513099,-900.0,0.00030843,120]
[391415505,1760596513125,-850.0,0.00030843,120]
[391415507,1760596513152,-680.0,0.00030843,120]
[391415508,1760596513179,-550.0,0.00030843,120]
[391415510,1760596513206,-1667.0,0.00030843,120]
[391415511,1760596513233,-717.26686947,0.00030843,120]
[391415513,1760596513261,-500.0,0.00030843,120]
[391415514,1760596513288,-266.76382033,0.00030843,120]
[391415516,1760596513315,-9667.0,0.00030843,30]
[391415517,1760596513341,-1768.0,0.00030843,120]
[391415519,1760596513369,-176.64735221,0.00030843,120]
[391415520,1760596513404,-3015.43,0.00030843,60]
[391415522,1760596513432,-1181.0,0.00030843,30]
[391415523,1760596513457,-165.8495857,0.00030843,120]
[391415525,1760596513483,-588.0,0.00030843,120]
[391415526,1760596513508,-150.0,0.00030843,30]
[391415528,1760596513534,-25070.86482891,0.00030843,30]
[391415529,1760596513560,-161.33978086,0.00030843,30]
[391415531,1760596513586,-164.15074314,0.00030843,90]
[391415532,1760596513612,-151.46513984,0.00030843,60]
[391415534,1760596513638,-588.13530921,0.00030843,30]
[391415535,1760596513663,-807.59922594,0.00030843,120]
[391415537,1760596513690,-150.95255843,0.00030843,120]
[391415538,1760596513716,-1929.92554332,0.00030843,60]
[391415540,1760596513743,-437.96742408,0.00030843,120]
[391415541,1760596513769,-453.97269836,0.00030843,120]
[391415543,1760596513795,-731.35062405,0.00030843,120]
[391415544,1760596513822,-2103.06781417,0.00030843,65]
[391415546,1760596513851,-3654.0,0.00030843,120]
[391415547,1760596513880,-372.8043,0.00030843,60]
[391415549,1760596513907,-2852.84898892,0.00030843,30]
[391415550,1760596513936,-680.0,0.00030843,36]
[391415551,1760596513967,-5575.55069125,0.00030843,120]
[391415553,1760596513997,-2304.718046,0.00030843,120]
[391415554,1760596514029,-2117.6,0.00030843,30]
[391415556,1760596514057,-770.0,0.00030843,30]
[391415557,1760596514087,-1849.0960341,0.00030843,35]
[391415559,1760596514121,-343.31988081,0.00030843,120]
[391415560,1760596514148,-306.01386316,0.00030843,60]
[391415562,1760596514175,-1226.94599,0.00030843,60]
[391415563,1760596514202,-1226.94599,0.00030843,60]
[391415565,1760596514230,-1226.94599,0.00030843,60]
[391415566,1760596514257,-236.0,0.00030843,120]
[391415568,1760596514283,-5000.0,0.00030843,120]
[391415569,1760596514309,-200.0,0.00030843,120]
[391416616,1760596574655,200.0,0.00030843,120]
[391416829,1760596587158,476.38138923,0.00030843,30]
[391416940,1760596594240,1672.0,0.00030843,30]
[391418016,1760596675525,4297.3,0.00013698,2]
[391418356,1760596741690,4002.29723077,0.00013,2]
[391418357,1760596741713,5354.09723077,0.00013,2]
[391418358,1760596741736,5354.09723077,0.00013,2]
[391418360,1760596741757,5354.09723077,0.00013,2]
[391418361,1760596741780,5354.09723077,0.00013,2]
[391418362,1760596741803,5354.09723077,0.00013,2]
[391418364,1760596741827,5354.09723077,0.00013,2]
[391418365,1760596741854,5354.09723077,0.00013,2]
[391418367,1760596741879,5354.09723077,0.00013,2]
[391418368,1760596741901,5354.09723077,0.00013,2]
[391418394,1760596748734,1000.0,0.00027397,120]
[391418511,1760596763372,1000.0,0.00027397,120]
[391418637,1760596774874,1010.0,0.00027397,120]
[391418727,1760596783606,1000.0,0.00027397,120]
[391419022,1760596867502,200.0,0.00030845,120]
[391419025,1760596995034,2000.0,0.00027397,120]
[391419026,1760597004740,500.0,0.00027397,120]
[391419027,1760597060259,500.0,0.00027397,120]
[391419028,1760597161472,200.0,0.00030844,120]
[391419041,1760597432325,-627.03415411,0.00012999,2]
[391419042,1760597432383,-572.96584589,0.00012999,2]
[391419043,1760597432395,-312.54043552,0.00013,2]
[391419044,1760597432412,-29328.45310349,0.00013,2]
[391419045,1760597432437,-2647.57839088,0.00013,2]
[391419046,1760597432449,-421.92696072,0.00013,2]
[391419047,1760597432462,-627.62514,0.00013,2]
[391419048,1760597432474,-624.24683828,0.00013,2]
[391419049,1760597432531,-874.81556192,0.00013,2]
[391419050,1760597432544,-1000.0,0.00013,2]
[391419051,1760597432556,-872.31859999,0.00013,2]
[391419052,1760597432569,-1203.444,0.00013,2]
[391419057,1760597437977,-705.50396723,0.00013,2]
[391419059,1760597438030,-564.1761,0.00013,2]
[391419060,1760597438041,-498.98998669,0.00013,2]
[391419061,1760597438087,-1855.88,0.00013,2]
[391419062,1760597438099,-951.71918112,0.00013,2]
[391419063,1760597438111,-821.61858714,0.00013,2]
[391419064,1760597438138,-96118.85546874,0.00013,2]
[391419065,1760597438147,-502.44661221,0.00013,7]
[391419066,1760597438162,-280.58386741,0.00013,2]
[391419067,1760597438172,-453.72,0.00013699,2]
[391419068,1760597438182,-166.66,0.00013699,2]
[391419069,1760597438192,-505.0,0.00013863,2]
[391419070,1760597438202,-1000.0,0.00013883,2]
[391419071,1760597438212,-453.1,0.00013895,2]
[391419072,1760597438222,-166.66,0.0001392,2]
[391419073,1760597438232,-165.63629225,0.00014141,2]
[391419074,1760597438244,-309.09370775,0.00014141,2]
[391419075,1760597438254,-93.42712907,0.00014142,2]
[391419076,1760597438266,-73.23287093,0.00014142,2]
[391419077,1760597438275,-420.87580113,0.00014186,2]
[391419078,1760597438285,-200.0,0.00014197,2]
[391419079,1760597438294,-557.23,0.00014197,2]
[391419080,1760597438305,-224.42627156,0.00014243,7]
[391419404,1760597441770,-25.57372844,0.00014243,7]
[391419406,1760597441780,-693.69894207,0.00014263,2]
[391419431,1760597442015,-1399.53483444,0.00014263,2]
[391419433,1760597442025,-453.1,0.00014281,2]
[391419435,1760597442035,-300.0,0.00014299,2]
[391419437,1760597442044,-2000.0,0.00014299,2]
[391419439,1760597442054,-698.67309033,0.00014299,2]
[391419616,1760597443802,-611.17646118,0.00014299,2]
[391419618,1760597443812,-195.0,0.00014299,2]
[391419620,1760597443824,-166.66,0.00014363,2]
[391419622,1760597443834,-69.59907734,0.00014494,2]
[391419854,1760597446455,-2023.63469914,0.00014494,2]
[391419856,1760597446465,-0.38025085,0.00014585,2]
[391421440,1760597462101,200.0,0.00030844,120]
[391421751,1760597465737,1180.1275554,0.00012,2]
[391421757,1760597592488,2000.0,0.00027397,120]
[391421758,1760597601851,500.0,0.00027397,120]
[391421759,1760597609170,307.45,0.00030844,30]
[391421760,1760597767557,200.0,0.00030844,120]
[391421761,1760597870999,1408.22765026,0.00030844,30]
[391421763,1760598062822,200.0,0.00030843,120]
[391421765,1760598193656,2000.0,0.00027397,120]
[391421842,1760598202853,500.0,0.00027397,120]
[391421844,1760598205932,5017.99562212,0.00030843,120]
[391421862,1760598234951,2074.2462414,0.00030843,120]
[391421863,1760598252816,2732.43834436,0.00030843,120]
[391421866,1760598362713,200.0,0.00030844,120]
[391421881,1760598632432,-494.7458587,0.00013681,2]
[391421882,1760598632444,-395.86238429,0.00013681,2]
[391421883,1760598632470,-26853.34420281,0.00013681,2]
[391421884,1760598632480,-3139.1899355,0.00013681,2]
[391421885,1760598632490,-19637.0481796,0.00013681,2]
[391421886,1760598632500,-705.13949549,0.00013681,2]
[391421887,1760598632511,-150.0,0.00013795,2]
[391421888,1760598632520,-2751.0,0.00013848,2]
[391421889,1760598632530,-204.26,0.00013917,2]
[391421890,1760598632540,-250.0,0.00014049,2]
[391421891,1760598632550,-266.19,0.000142,2]
[391421892,1760598632560,-300.0,0.000142,2]
[391421893,1760598632569,-301.04,0.000142,2]
[391421894,1760598632579,-151.85,0.000142,2]
[391421895,1760598632589,-695.17,0.000142,2]
[391421896,1760598632599,-175.87,0.000142,2]
[391421897,1760598632608,-434.89818659,0.000142,2]
[391421898,1760598632620,-260.27181341,0.000142,2]
[391421899,1760598632630,-474.73,0.000142,2]
[391421900,1760598632639,-176.0,0.000142,2]
[391421901,1760598632649,-485.43077698,0.000142,2]
[391421902,1760598632679,-143.82922302,0.000142,2]
[391421904,1760598632689,-474.73,0.000142,2]
[391421906,1760598632699,-474.73,0.000142,2]
[391421908,1760598632709,-474.73,0.000142,2]
[391421910,1760598632718,-300.0,0.000142,2]
[391421912,1760598632728,-2344.55547,0.0001444,2]
[391421914,1760598632738,-166.27974915,0.00014585,2]
[391421915,1760598632747,-2344.55548,0.00014585,2]
[391421916,1760598632757,-2344.55548,0.00014585,2]
[391421917,1760598632766,-2344.55548,0.00014585,2]
[391421918,1760598632775,-2344.55547,0.00014585,2]
[391421919,1760598632785,-2344.55547,0.00014585,2]
[391421920,1760598632794,-176.03,0.000146,2]
[391421921,1760598632805,-176.03,0.000146,2]
[391421922,1760598632815,-151.0,0.00014605,2]
[391421923,1760598632824,-151.0,0.00014605,2]
[391421925,1760598632834,-239.352003,0.00014605,2]
[391421927,1760598632843,-301.99999931,0.00014605,2]
[391421929,1760598632852,-151.0,0.00014605,2]
[391421931,1760598632862,-151.0,0.00014605,2]